Workbook

Sheet 总成绩折算
A1: 六盘水市妇幼保健院2019年公开招聘工作人员总成绩 及进入体检人员名单
A3: 排名 | B3: 姓名 | C3: 性别 | D3: 出生年月 | E3: 应聘岗位 | F3: 笔试成绩 | G3: 计算机操作考试成绩 | H3: 面试成绩 | I3: 笔试 折算分 | J3: 机考 折算分 | K3: 面试 折算分 | L3: 总成绩 | M3: 是否进入体检
A4: 1 | B4: 赵竹君 | C4: 女 | D4: 1996-07 | E4: 收费员 | F4: 51.5 | G4: 57.5 | H4: 88.8 | I4: =ROUND((F4*0.4),2) -> 20.6 | J4: =ROUND((G4*0.3),2) -> 17.25 | K4: =ROUND((H4*0.3),2) -> 26.64 | L4: =I4+J4+K4 -> 64.49 | M4: 是
A5: 2 | B5: 王超群 | C5: 女 | D5: 1987-10 | E5: 收费员 | F5: 43 | G5: 80.25 | H5: 72 | I5: 17.2 | J5: =ROUND((G5*0.3),2) -> 24.08 | K5: =ROUND((H5*0.3),2) -> 21.6 | L5: 62.88 | M5: 是
A6: 3 | B6: 杨娜 | C6: 女 | D6: 1992-11 | E6: 收费员 | F6: 46 | G6: 55.625 | H6: 88.2 | I6: 18.4 | J6: 16.69 | K6: 26.46 | L6: 61.55 | M6: 是
A7: 4 | B7: 李璐斌 | C7: 女 | D7: 1998-01 | E7: 收费员 | F7: 50 | G7: 51.375 | H7: 76.2 | I7: 20 | J7: 15.41 | K7: 22.86 | L7: 58.27 | M7: 是
A8: 5 | B8: 李蓉 | C8: 女 | D8: 1998-02 | E8: 收费员 | F8: 43.5 | G8: 58.75 | H8: 74.2 | I8: 17.4 | J8: 17.63 | K8: 22.26 | L8: 57.29
A9: 6 | B9: 杜蕊晗 | C9: 女 | D9: 1998-12 | E9: 收费员 | F9: 48 | G9: 32.25 | H9: 93.6 | I9: 19.2 | J9: 9.68 | K9: 28.08 | L9: 56.96
A10: 7 | B10: 赵锦 | C10: 女 | D10: 1996-07 | E10: 收费员 | F10: 50 | G10: 40.875 | H10: 82 | I10: 20 | J10: 12.26 | K10: 24.6 | L10: 56.86
A11: 8 | B11: 杨婷 | C11: 女 | D11: 1994-08 | E11: 收费员 | F11: 58 | G11: 45.625 | H11: 63 | I11: 23.2 | J11: 13.69 | K11: 18.9 | L11: 55.79
A12: 9 | B12: 黄瑜 | C12: 女 | D12: 1996-09 | E12: 收费员 | F12: 52 | G12: 46.75 | H12: 69.6 | I12: 20.8 | J12: 14.03 | K12: 20.88 | L12: 55.71
A13: 10 | B13: 王涵 | C13: 女 | D13: 1994-03 | E13: 收费员 | F13: 50 | G13: 44.125 | H13: 74.8 | I13: 20 | J13: 13.24 | K13: 22.44 | L13: 55.68
A14: 11 | B14: 瞿美伶 | C14: 女 | D14: 1990-02 | E14: 收费员 | F14: 46.5 | G14: 47.5 | H14: 73 | I14: 18.6 | J14: 14.25 | K14: 21.9 | L14: 54.75
A15: 12 | B15: 王青 | C15: 女 | D15: 1989-11 | E15: 收费员 | F15: 52.5 | G15: 45.375 | H15: 66.4 | I15: 21 | J15: 13.61 | K15: 19.92 | L15: 54.53
A16: 13 | B16: 沙芳 | C16: 女 | D16: 1992-09 | E16: 收费员 | F16: 54.5 | G16: 32 | H16: 75.8 | I16: 21.8 | J16: 9.6 | K16: 22.74 | L16: 54.14
A17: 14 | B17: 柯希阳 | C17: 女 | D17: 1994-10 | E17: 收费员 | F17: 48 | G17: 48.75 | H17: 67.2 | I17: 19.2 | J17: 14.63 | K17: 20.16 | L17: 53.99
A18: 15 | B18: 陈敏 | C18: 女 | D18: 1986-07 | E18: 收费员 | F18: 46.5 | G18: 39.625 | H18: 77.6 | I18: 18.6 | J18: 11.89 | K18: 23.28 | L18: 53.77
A19: 16 | B19: 杨露露 | C19: 女 | D19: 1997-07 | E19: 收费员 | F19: 45.5 | G19: 46.25 | H19: 68 | I19: 18.2 | J19: 13.88 | K19: 20.4 | L19: 52.48
A20: 17 | B20: 黄帆 | C20: 女 | D20: 1991-12 | E20: 收费员 | F20: 53.5 | G20: 27.375 | H20: 74.6 | I20: 21.4 | J20: 8.21 | K20: 22.38 | L20: 51.99
A21: 18 | B21: 刘丽 | C21: 女 | D21: 1995-03 | E21: 收费员 | F21: 46.5 | G21: 41.875 | H21: 69.2 | I21: 18.6 | J21: 12.56 | K21: 20.76 | L21: 51.92
A22: 19 | B22: 敖优 | C22: 女 | D22: 1995-07 | E22: 收费员 | F22: 47.5 | G22: 41.75 | H22: 66.2 | I22: 19 | J22: 12.53 | K22: 19.86 | L22: 51.39
A23: 20 | B23: 田春晖 | C23: 女 | D23: 1996-01 | E23: 收费员 | F23: 43 | G23: 41 | H23: 72.2 | I23: 17.2 | J23: 12.3 | K23: 21.66 | L23: 51.16
A24: 21 | B24: 蔡双艳 | C24: 女 | D24: 1992-06 | E24: 收费员 | F24: 44 | G24: 46.25 | H24: 62.8 | I24: 17.6 | J24: 13.88 | K24: 18.84 | L24: 50.32
A25: 22 | B25: 邓宇璐 | C25: 女 | D25: 1996-06 | E25: 收费员 | F25: 45 | G25: 36.25 | H25: 70.6 | I25: 18 | J25: 10.88 | K25: 21.18 | L25: 50.06
A26: 23 | B26: 孙佳芬 | C26: 女 | D26: 1991-09 | E26: 收费员 | F26: 44.5 | G26: 34 | H26: 73.2 | I26: 17.8 | J26: 10.2 | K26: 21.96 | L26: 49.96
A27: 24 | B27: 林科云 | C27: 女 | D27: 1995-04 | E27: 收费员 | F27: 43.5 | G27: 34.625 | H27: 73.2 | I27: 17.4 | J27: 10.39 | K27: 21.96 | L27: 49.75
A28: 25 | B28: 李文群 | C28: 女 | D28: 1989-06 | E28: 收费员 | F28: 48.5 | G28: 36.5 | H28: 63.2 | I28: 19.4 | J28: 10.95 | K28: 18.96 | L28: 49.31
A29: 26 | B29: 周红连 | C29: 女 | D29: 1989-05 | E29: 收费员 | F29: 44.5 | G29: 32 | H29: 72.6 | I29: 17.8 | J29: 9.6 | K29: 21.78 | L29: 49.18
A30: 27 | B30: 周丽敏 | C30: 女 | D30: 1995-10 | E30: 收费员 | F30: 46 | G30: 28.125 | H30: 74 | I30: 18.4 | J30: 8.44 | K30: 22.2 | L30: 49.04
A31: 28 | B31: 邓艾佳 | C31: 女 | D31: 1993-08 | E31: 收费员 | F31: 43.5 | G31: 34.5 | H31: 70.6 | I31: 17.4 | J31: 10.35 | K31: 21.18 | L31: 48.93
A32: 29 | B32: 官滟 | C32: 女 | D32: 1995-04 | E32: 收费员 | F32: 51 | G32: 31.375 | H32: 58.4 | I32: 20.4 | J32: 9.41 | K32: 17.52 | L32: 47.33
A33: 30 | B33: 李燕 | C33: 女 | D33: 1991-01 | E33: 收费员 | F33: 46 | G33: 25.5 | H33: 67.8 | I33: 18.4 | J33: 7.65 | K33: 20.34 | L33: 46.39
A34: 31 | B34: 丁美 | C34: 女 | D34: 1991-02 | E34: 收费员 | F34: 43 | G34: 22.375 | H34: 70.4 | I34: 17.2 | J34: 6.71 | K34: 21.12 | L34: 45.03
A35: 32 | B35: 宋念 | C35: 女 | D35: 1995-04 | E35: 收费员 | F35: 44.5 | G35: 40.75 | H35: 缺考 | I35: 17.8 | J35: 12.23 | L35: 0
A36: 32 | B36: 安金云 | C36: 女 | D36: 1993-02 | E36: 收费员 | F36: 45 | G36: 32.125 | H36: 缺考 | I36: 18 | J36: 9.64 | L36: 0
A37: 32 | B37: 马凤 | C37: 女 | D37: 1992-07 | E37: 收费员 | F37: 46.5 | G37: 31.125 | H37: 缺考 | I37: 18.6 | J37: 9.34 | L37: 0
A38: 32 | B38: 黄雪 | C38: 女 | D38: 1992-07 | E38: 收费员 | F38: 48 | G38: 18.625 | H38: 缺考 | I38: 19.2 | J38: 5.59 | L38: 0
A39: 32 | B39: 周霞 | C39: 女 | D39: 1994-03 | E39: 收费员 | F39: 44.5 | G39: 8.5 | H39: 缺考 | I39: 17.8 | J39: 2.55 | L39: 0
A40: 32 | B40: 王沙 | C40: 女 | D40: 1995-09 | E40: 收费员 | F40: 53 | G40: 缺考 | H40: 缺考 | I40: 21.2 | L40: 0
A41: 32 | B41: 杜蕾 | C41: 女 | D41: 1994-03 | E41: 收费员 | F41: 52 | G41: 缺考 | H41: 缺考 | I41: 20.8 | L41: 0
A42: 32 | B42: 罗莎 | C42: 女 | D42: 1987-07 | E42: 收费员 | F42: 48.5 | G42: 缺考 | H42: 缺考 | I42: 19.4 | L42: 0
A43: 32 | B43: 岳晓艳 | C43: 女 | D43: 1993-08 | E43: 收费员 | F43: 45.5 | G43: 缺考 | H43: 缺考 | I43: 18.2 | L43: 0
A44: 32 | B44: 肖梅 | C44: 女 | D44: 1993-06 | E44: 收费员 | F44: 43.5 | G44: 缺考 | H44: 缺考 | I44: 17.4 | L44: 0
A45: 32 | B45: 张利 | C45: 女 | D45: 1996-11 | E45: 收费员 | F45: 43 | G45: 缺考 | H45: 缺考 | I45: 17.2 | L45: 0
A46: 32 | B46: 赵海燕 | C46: 女 | D46: 1997-02 | E46: 收费员 | F46: 43 | G46: 缺考 | H46: 缺考 | I46: 17.2 | L46: 0
A47: 1 | B47: 黄巍 | C47: 女 | D47: 1998-01 | E47: 小儿听力与言语康复 | F47: 55.5 | H47: 83 | I47: =ROUND((F47*0.6),2) -> 33.3 | K47: =ROUND((H47*0.4),2) -> 33.2 | L47: =I47+J47+K47 -> 66.5 | M47: 是
A48: 2 | B48: 谢秀玲 | C48: 女 | D48: 1996-10 | E48: 小儿听力与言语康复 | F48: 41.5 | H48: 72.6 | I48: 24.9 | K48: =ROUND((H48*0.4),2) -> 29.04 | L48: 53.94
A49: 3 | B49: 敖慧荣 | C49: 女 | D49: 1997-11 | E49: 小儿听力与言语康复 | F49: 42 | H49: 69 | I49: 25.2 | K49: 27.6 | L49: 52.8
A50: 1 | B50: 陈海 | C50: 男 | D50: 1997-10 | E50: 小儿运动康复治疗 | F50: 46 | H50: 79.8 | I50: 27.6 | K50: 31.92 | L50: 59.52 | M50: 是
A51: 2 | B51: 杨松林 | C51: 男 | D51: 1997-11 | E51: 小儿运动康复治疗 | F51: 43.5 | H51: 76.6 | I51: 26.1 | K51: 30.64 | L51: 56.74 | M51: 是
A52: 3 | B52: 范太福 | C52: 男 | D52: 1994-08 | E52: 小儿运动康复治疗 | F52: 47 | H52: 70.4 | I52: 28.2 | K52: 28.16 | L52: 56.36 | M52: 是
A53: 4 | B53: 杨正山 | C53: 男 | D53: 1996-05 | E53: 小儿运动康复治疗 | F53: 39.5 | H53: 80.6 | I53: 23.7 | K53: 32.24 | L53: 55.94 | M53: 是
A54: 5 | B54: 邓钊 | C54: 男 | D54: 1995-08 | E54: 小儿运动康复治疗 | F54: 40 | H54: 73.8 | I54: 24 | K54: 29.52 | L54: 53.52 | M54: 是
A55: 6 | B55: 孙果果 | C55: 男 | D55: 1992-06 | E55: 小儿运动康复治疗 | F55: 35 | H55: 80.6 | I55: 21 | K55: 32.24 | L55: 53.24
A56: 7 | B56: 祖章鹏 | C56: 男 | D56: 1996-03 | E56: 小儿运动康复治疗 | F56: 45 | H56: 64 | I56: 27 | K56: 25.6 | L56: 52.6
A57: 8 | B57: 卢尊岳 | C57: 男 | D57: 1997-05 | E57: 小儿运动康复治疗 | F57: 37.5 | H57: 74.8 | I57: 22.5 | K57: 29.92 | L57: 52.42
A58: 9 | B58: 吴长飘 | C58: 男 | D58: 1995-11 | E58: 小儿运动康复治疗 | F58: 36 | H58: 75 | I58: 21.6 | K58: 30 | L58: 51.6
A59: 10 | B59: 付兴华 | C59: 男 | D59: 1992-09 | E59: 小儿运动康复治疗 | F59: 37 | H59: 71.4 | I59: 22.2 | K59: 28.56 | L59: 50.76
A60: 11 | B60: 赵军 | C60: 男 | D60: 1996-04 | E60: 小儿运动康复治疗 | F60: 39 | H60: 67.8 | I60: 23.4 | K60: 27.12 | L60: 50.52
A61: 12 | B61: 张炎 | C61: 男 | D61: 1994-08 | E61: 小儿运动康复治疗 | F61: 40.5 | H61: 61.6 | I61: 24.3 | K61: 24.64 | L61: 48.94
A62: 13 | B62: 杨晓宇 | C62: 男 | D62: 1997-03 | E62: 小儿运动康复治疗 | F62: 36 | H62: 68 | I62: 21.6 | K62: 27.2 | L62: 48.8
A63: 14 | B63: 蒋汶成 | C63: 男 | D63: 1995-12 | E63: 小儿运动康复治疗 | F63: 35 | H63: 69.2 | I63: 21 | K63: 27.68 | L63: 48.68
A64: 15 | B64: 马关正 | C64: 男 | D64: 1996-04 | E64: 小儿运动康复治疗 | F64: 35 | H64: 65.4 | I64: 21 | K64: 26.16 | L64: 47.16
A65: 16 | B65: 赵顺顺 | C65: 男 | D65: 1996-11 | E65: 小儿运动康复治疗 | F65: 35 | H65: 65 | I65: 21 | K65: 26 | L65: 47
A66: 17 | B66: 赵义 | C66: 男 | D66: 1995-08 | E66: 小儿运动康复治疗 | F66: 37 | H66: 56.2 | I66: 22.2 | K66: 22.48 | L66: 44.68
A67: 18 | B67: 陈奎 | C67: 男 | D67: 1996-04 | E67: 小儿运动康复治疗 | F67: 39.5 | H67: 缺考 | I67: 23.7 | L67: 0
A68: 1 | B68: 王龙燕 | C68: 女 | D68: 1997-10 | E68: 小儿作业康复治疗 | F68: 52 | H68: 71.6 | I68: 31.2 | K68: =ROUND((H68*0.4),2) -> 28.64 | L68: =I68+J68+K68 -> 59.84 | M68: 是
A69: 2 | B69: 陈梅 | C69: 女 | D69: 1995-03 | E69: 小儿作业康复治疗 | F69: 46 | H69: 76.8 | I69: 27.6 | K69: 30.72 | L69: 58.32
A70: 3 | B70: 杨桃 | C70: 女 | D70: 1995-09 | E70: 小儿作业康复治疗 | F70: 47 | H70: 69 | I70: 28.2 | K70: 27.6 | L70: 55.8
A71: 1 | B71: 钟凌 | C71: 男 | D71: 1993-08 | E71: 心理门诊 | F71: 47 | H71: 86.6 | I71: 28.2 | K71: 34.64 | L71: 62.84 | M71: 是
A72: 2 | B72: 唐念 | C72: 女 | D72: 1993-11 | E72: 心理门诊 | F72: 46.5 | H72: 72.8 | I72: 27.9 | K72: 29.12 | L72: 57.02
A73: 3 | B73: 邹瑜 | C73: 女 | D73: 1991-01 | E73: 心理门诊 | F73: 48.5 | H73: 65 | I73: 29.1 | K73: 26 | L73: 55.1
